Name,Sub Group,Service Areas,Expense Type,Narrative,Date,Transaction Number,Amount,Supplier Name,Supplier Ref,Period,Year
Allerdale Borough Council,50000,Capital Expenditure,Housing Improvement Projects,Capital Programme,26/08/2016,165496,"25,000.00",BONA VACANTIA DIVISION,M00951,6,2016
Allerdale Borough Council,33121,Income,Off-street - Owned,Excess Charges - Car Parks Income,07/09/2016,165497,3.20,Redacted information - included personal information ,M00952,6,2016
Allerdale Borough Council,33121,Income,Off-street - Owned,Excess Charges - Car Parks Income,07/09/2016,165498,7.20,Redacted information - included personal information ,M00953,6,2016
Allerdale Borough Council,16150,Supplies & Services,LEP Flood Recovery Events Funding,General Promotions,07/09/2016,165499,100.00,Redacted information - included personal information ,M00954,6,2016
Allerdale Borough Council,54104,Capital Expenditure,Housing Improvement Projects,Gen Grants Private Individuals (Captial),15/09/2016,165500,200.00,Redacted information - included personal information ,M00955,6,2016
Allerdale Borough Council,54104,Capital Expenditure,Housing Improvement Projects,Gen Grants Private Individuals (Captial),07/09/2016,165501,200.00,Redacted information - included personal information ,M00956,6,2016
Allerdale Borough Council,54104,Capital Expenditure,Housing Improvement Projects,Gen Grants Private Individuals (Captial),07/09/2016,165502,200.00,Redacted information - included personal information ,M00957,6,2016
Allerdale Borough Council,54104,Capital Expenditure,Housing Improvement Projects,Gen Grants Private Individuals (Captial),07/09/2016,165503,200.00,Redacted information - included personal information ,M00958,6,2016
Allerdale Borough Council,21150,Transfer Payments,Festivals & Events,General Grants,07/09/2016,165504,200.00,CASTLEROCK,M00916,6,2016
Allerdale Borough Council,14201,Transport,Head of Housing & Health,Public Transport,,165505,103.60,BARCLAYCARD COMMERCIAL ,X00207,6,2016
Allerdale Borough Council,10203,Employee Costs,Chief Executive,Subsistence Allowance,,165506,87.00,BARCLAYCARD COMMERCIAL ,X00207,6,2016
Allerdale Borough Council,15803,Supplies & Services,IT Costs (Allerdale Only),Hardware Purchase,,165507,"1,356.10",BARCLAYCARD COMMERCIAL ,X00207,6,2016
Allerdale Borough Council,10401,Employee Costs,Customer Services Pay Group,Agency Staff Costs,07/09/2016,165515,433.38,ADECCO RECRUITMENT,A00188,6,2016
Allerdale Borough Council,15506,Supplies & Services,Communications,Professional Services,07/09/2016,165516,"2,250.00",ELSWORTH COMMUNICATIONS,A01869,6,2016
Allerdale Borough Council,10401,Employee Costs,Customer Services Pay Group,Agency Staff Costs,07/09/2016,165517,104.85,ADECCO RECRUITMENT,A00188,6,2016
Allerdale Borough Council,15506,Supplies & Services,Legal Services,Professional Services,07/09/2016,165518,"1,724.00",BEVAN BRITTAN LLP,A02181,6,2016
Allerdale Borough Council,15506,Supplies & Services,Environmental Protection,Professional Services,07/09/2016,165519,"1,377.50",COLE JARMAN LTD,A02312,6,2016
Allerdale Borough Council,16150,Supplies & Services,Town Centre Management,General Promotions,07/09/2016,165520,225.00,POD (NORTH WEST) LIMITED,A01977,6,2016
Allerdale Borough Council,15506,Supplies & Services,Sports Development,Professional Services,07/09/2016,165521,560.00,WRIGHTS SPORT SERVICES,A01482,6,2016
Allerdale Borough Council,26000,Earmarked Reserves,Economic Regeneration,Budget-Expd funded from Reserve,07/09/2016,165523,"12,500.00",NEPRO LIMITED,A02360,6,2016
Allerdale Borough Council,26000,Earmarked Reserves,Shared Revs & Bens Projects,Budget-Expd funded from Reserve,07/09/2016,165524,962.00,MORGAN HUNT PUBLIC SECTOR,A00725,6,2016
Allerdale Borough Council,15101,Supplies & Services,Solway Wetlands Project,Equipment Costs,21/09/2016,165525,74.30,VAN WALT LIMITED,A02257,6,2016
Allerdale Borough Council,15500,Supplies & Services,Confidential Waste,Budget-Services,07/09/2016,165526,35.00,J DUFFY LTD T/A PW CONF BUS SERVICES,A01846,6,2016
Allerdale Borough Council,15500,Supplies & Services,Confidential Waste,Budget-Services,07/09/2016,165527,261.00,J DUFFY LTD T/A PW CONF BUS SERVICES,A01846,6,2016
Allerdale Borough Council,15500,Supplies & Services,Confidential Waste,Budget-Services,07/09/2016,165528,235.00,J DUFFY LTD T/A PW CONF BUS SERVICES,A01846,6,2016
Allerdale Borough Council,10401,Employee Costs,Elections,Agency Staff Costs,28/09/2016,165529,"9,452.30",ASSOCIATION OF ELECTORAL ADMIN,A00189,6,2016
Allerdale Borough Council,15103,Supplies & Services,Animal Welfare,Purchase of Materials,28/09/2016,165530,"2,025.00",PMC POLYTHENE LTD,A00194,6,2016
Allerdale Borough Council,15506,Supplies & Services,Solway Wetlands Project,Professional Services,07/09/2016,165531,"18,317.73",GRAMPUS HERITAGE & TRAINING LTD,A01890,6,2016
Allerdale Borough Council,15401,Supplies & Services,Building Control - Chargeable,General Stationery,14/09/2016,165532,50.18,HEATONS OFFICE SOLUTION (PREV LAKELAND/INTEGRITY),A00069,6,2016
Allerdale Borough Council,14104,Transport,Domestic Waste,Repairs & Maintenance,07/09/2016,165533,"6,952.00",DOBIES VAUXHALL,A00254,6,2016
Allerdale Borough Council,12100,Premises,Parks and Grounds Maintenance,Budget-External Maintenance & Decoration,28/09/2016,165534,285.00,ISS WATERERS LANDSCAPE,C00044,6,2016
Allerdale Borough Council,10601,Employee Costs,Training,External Courses & Seminar Fees,21/09/2016,165535,175.00,SCOTTISH LIME CENTRE TRUST,A00494,6,2016
Allerdale Borough Council,15508,Supplies & Services,Licensing Service,Subscriptions,21/09/2016,165536,275.00,INSTITUTE OF LICENSING,A01789,6,2016
Allerdale Borough Council,21150,Transfer Payments,Solway Wetlands Project,General Grants,28/09/2016,165537,"2,250.00",NORTH OF ENGLAND CIVIC TRUST,A02178,6,2016
Allerdale Borough Council,16301,Supplies & Services,KMAG Enhancement Activity,Reimbursement,07/09/2016,165538,"2,581.65",KESWICK MUSEUM & ART GALLERY,A00337,6,2016
Allerdale Borough Council,15802,Supplies & Services,Shared ICT Costs,Hardware Maintenance,28/09/2016,165539,"1,133.32",NETCENTRIX LIMITED,A00106,6,2016
Allerdale Borough Council,15802,Supplies & Services,Shared ICT Costs,Hardware Maintenance,28/09/2016,165540,"1,122.92",NETCENTRIX LIMITED,A00106,6,2016
Allerdale Borough Council,15501,Supplies & Services,Homelessness,Consultants Fees,07/09/2016,165541,25.00,ASPATRIA MEDICAL GROUP,A00929,6,2016
Allerdale Borough Council,15501,Supplies & Services,Estates,Consultants Fees,07/09/2016,165542,"2,300.00",JAMES ANDREW RECRUITMENT SOLUTIONS LTD,A02339,6,2016
Allerdale Borough Council,16101,Supplies & Services,Planning and Development,Statutory Notices,07/09/2016,165543,492.05,CUMBRIAN NEWSPAPERS LIMITED,A00869,6,2016
Allerdale Borough Council,16101,Supplies & Services,Planning and Development,Statutory Notices,07/09/2016,165544,533.05,CUMBRIAN NEWSPAPERS LIMITED,A00869,6,2016
Allerdale Borough Council,16101,Supplies & Services,Planning and Development,Statutory Notices,07/09/2016,165545,514.21,CUMBRIAN NEWSPAPERS LIMITED,A00869,6,2016
Allerdale Borough Council,12101,Premises,Car Parks Inspection & Maintenance,External Maintenance & Decoration,07/09/2016,165546,405.00,Redacted information - included personal information ,C00008,6,2016
Allerdale Borough Council,10605,Employee Costs,Members Services,Travel,07/09/2016,165547,180.00,KEN ROUTLEDGE TRAVEL LTD,A00192,6,2016
Allerdale Borough Council,15501,Supplies & Services,Solway Wetlands Project,Consultants Fees,07/09/2016,165548,800.00,CREATIVE HORIZONS CUMBRIA,A02277,6,2016
Allerdale Borough Council,10601,Employee Costs,Training,External Courses & Seminar Fees,21/09/2016,165549,25.00,KILLGERM CHEMICALS LTD,A00361,6,2016
Allerdale Borough Council,16306,Supplies & Services,Flood Costs 2015,Environmental costs - Flooding,07/09/2016,165550,"1,800.00",DOBIES VAUXHALL,A00254,6,2016
Allerdale Borough Council,10401,Employee Costs,Environmental Services Pay Group,Agency Staff Costs,21/09/2016,165551,"2,120.00",PRACTICUS LTD,A02237,6,2016
Allerdale Borough Council,16001,Supplies & Services,Banking and Interest,Bank Charges and Fees,28/09/2016,165552,16.91,ALLPAY.NET LIMITED,A00714,6,2016
Allerdale Borough Council,16001,Supplies & Services,Banking and Interest,Bank Charges and Fees,28/09/2016,165553,24.76,ALLPAY.NET LIMITED,A00714,6,2016
Allerdale Borough Council,16001,Supplies & Services,Banking and Interest,Bank Charges and Fees,28/09/2016,165554,38.11,ALLPAY.NET LIMITED,A00714,6,2016
Allerdale Borough Council,16001,Supplies & Services,Banking and Interest,Bank Charges and Fees,28/09/2016,165555,"1,544.05",ALLPAY.NET LIMITED,A00714,6,2016
Allerdale Borough Council,16001,Supplies & Services,Banking and Interest,Bank Charges and Fees,28/09/2016,165556,15.27,ALLPAY.NET LIMITED,A00714,6,2016
Allerdale Borough Council,16001,Supplies & Services,Banking and Interest,Bank Charges and Fees,28/09/2016,165557,15.27,ALLPAY.NET LIMITED,A00714,6,2016
Allerdale Borough Council,16001,Supplies & Services,Banking and Interest,Bank Charges and Fees,28/09/2016,165558,15.27,ALLPAY.NET LIMITED,A00714,6,2016
Allerdale Borough Council,16001,Supplies & Services,Banking and Interest,Bank Charges and Fees,28/09/2016,165559,21.30,ALLPAY.NET LIMITED,A00714,6,2016
Allerdale Borough Council,16001,Supplies & Services,Banking and Interest,Bank Charges and Fees,28/09/2016,165560,28.63,ALLPAY.NET LIMITED,A00714,6,2016
Allerdale Borough Council,16001,Supplies & Services,Banking and Interest,Bank Charges and Fees,28/09/2016,165561,71.71,ALLPAY.NET LIMITED,A00714,6,2016
Allerdale Borough Council,31104,Income,BEC Social Investment Fund,Contribution from Other Organisations,07/09/2016,165562,"25,000.00",NT PRECISION LTD,M00959,6,2016
Allerdale Borough Council,31104,Income,BEC Social Investment Fund,Contribution from Other Organisations,07/09/2016,165563,"15,000.00",SIMPLY GOOD FOOD TV,M00960,6,2016
Allerdale Borough Council,15404,Supplies & Services,Finance and Accounting Pay Group,Reference Materials,,165564,60.00,BARCLAYCARD COMMERCIAL,X00207,6,2016
Allerdale Borough Council,15404,Supplies & Services,Finance and Accounting Pay Group,Reference Materials,,165565,45.00,BARCLAYCARD COMMERCIAL,X00207,6,2016
Allerdale Borough Council,15403,Supplies & Services,Housing & Health Pay Group,Publications and Periodicals,,165566,70.77,BARCLAYCARD COMMERCIAL,X00207,6,2016
Allerdale Borough Council,14101,Transport,Homelessness,Vehicle Leasing,07/09/2016,165568,171.74,DOBIES VAUXHALL,A00254,6,2016
Allerdale Borough Council,15103,Supplies & Services,Health and Safety,Purchase of Materials,07/09/2016,165569,218.03,POSTURITE (UK) LTD,A00336,6,2016
Allerdale Borough Council,15101,Supplies & Services,Homelessness,Equipment Costs,07/09/2016,165570,66.66,ARGOS BUSINESS SOLUTION-STORE COLLECTION,A00411,6,2016
Allerdale Borough Council,15405,Supplies & Services,Electoral Registration,Use of External Printers,07/09/2016,165571,"12,339.03",PRINT IMAGE NETWORK LIMITED (POSTAGE),A01782,6,2016
Allerdale Borough Council,12201,Premises,Homelessness,Internal Maintenance,07/09/2016,165572,70.12,TRAVIS PERKINS,A00742,6,2016
Allerdale Borough Council,12201,Premises,Homelessness,Internal Maintenance,07/09/2016,165573,35.06,TRAVIS PERKINS,A00742,6,2016
Allerdale Borough Council,34104,Income,Benefits,Rent Allowances Overpayments Income,07/09/2016,165574,1.50,ROSSENDALES LTD,A00964,6,2016
Allerdale Borough Council,34104,Income,Benefits,Rent Allowances Overpayments Income,07/09/2016,165575,1.35,ROSSENDALES LTD,A00964,6,2016
Allerdale Borough Council,34104,Income,Benefits,Rent Allowances Overpayments Income,07/09/2016,165576,5.40,ROSSENDALES LTD,A00964,6,2016
Allerdale Borough Council,15703,Supplies & Services,Shared ICT Costs,Call Charges,07/09/2016,165577,"13,460.76",BRITISH TELECOMMUNICATIONS,X00004,6,2016
Allerdale Borough Council,12403,Premises,Homelessness,Gas,07/09/2016,165578,48.37,GAZPROM ENERGY,X00246,6,2016
Allerdale Borough Council,12403,Premises,Homelessness,Gas,07/09/2016,165579,45.08,GAZPROM ENERGY,X00246,6,2016
Allerdale Borough Council,12403,Premises,Homelessness,Gas,07/09/2016,165580,57.18,GAZPROM ENERGY,X00246,6,2016
Allerdale Borough Council,12403,Premises,Homelessness,Gas,07/09/2016,165581,36.87,GAZPROM ENERGY,X00246,6,2016
Allerdale Borough Council,35106,Income,Homelessness,Dwellings Income,07/09/2016,165582,56.88,ALLERDALE,A00342,6,2016
Allerdale Borough Council,15600,Supplies & Services,Electoral Registration,Budget-Postal Services,07/09/2016,165583,"3,413.57",ROYAL MAIL LETTERS,X00021,6,2016
Allerdale Borough Council,15702,Supplies & Services,Shared ICT Costs,Line Rentals,07/09/2016,165584,59.34,BRITISH TELECOMMUNICATIONS,X00004,6,2016
Allerdale Borough Council,16350,Supplies & Services,Chief Executive,Miscellaneous Expenses,,165585,"1,869.61",BARCLAYCARD COMMERCIAL,X00207,6,2016
Allerdale Borough Council,15102,Supplies & Services,Off-street - Owned,Equipment Repair & Maintenance,07/09/2016,165586,"1,072.50",PARKING INFRASTRUCTURE SERVICES UK,A01343,6,2016
Allerdale Borough Council,15506,Supplies & Services,Legal Services,Professional Services,07/09/2016,165587,110.00,BURNETTS SOLICITORS,A00129,6,2016
Allerdale Borough Council,15403,Supplies & Services,Chief Executive,Publications and Periodicals,07/09/2016,165588,224.10,EMAP COMMUNICATIONS,A00281,6,2016
Allerdale Borough Council,12303,Premises,Corporate Property Maintenance,Window Cleaning,07/09/2016,165589,470.00,BORDERBRITE LTD,C00155,6,2016
Allerdale Borough Council,15303,Supplies & Services,Food and Occupational Health,Laundry,07/09/2016,165590,83.93,BERENDSEN UK LTD,A00027,6,2016
Allerdale Borough Council,15506,Supplies & Services,Communications and Marketing,Professional Services,21/09/2016,165591,"4,327.00",NWA SOCIAL & MARKET RESEARCH LTD,A02082,6,2016
Allerdale Borough Council,15101,Supplies & Services,Parking Services Pay Group,Equipment Costs,21/09/2016,165592,"3,205.45",KELTIC,A00017,6,2016
Allerdale Borough Council,20150,Third Party Payments,Corporate Property Maintenance,General Partnership Service Fees,14/09/2016,165593,245.95,ORIAN SOLUTIONS LTD,A01814,6,2016
Allerdale Borough Council,21150,Transfer Payments,Carnegie Trust Contribution,General Grants,07/09/2016,165594,"11,250.00",Carnegie Theatre Trust,R00015,6,2016
Allerdale Borough Council,12403,Premises,Homelessness,Gas,14/09/2016,165595,71.00,MEPOS LIMITED,A01286,6,2016
Allerdale Borough Council,10401,Employee Costs,Customer Services Pay Group,Agency Staff Costs,07/09/2016,165596,314.55,ADECCO RECRUITMENT,A00188,6,2016
Allerdale Borough Council,20150,Third Party Payments,Footway Lighting Scheme,General Partnership Service Fees,,165597,-0.01,ELECTRICITY NORTH WEST LTD,A00471,6,2016
Allerdale Borough Council,20150,Third Party Payments,Footway Lighting Scheme,General Partnership Service Fees,,165598,0.01,ELECTRICITY NORTH WEST LTD,A00471,6,2016
Allerdale Borough Council,10110,Employee Costs,Busy Bees Childcare Scheme,Salary Sacrifice,14/09/2016,165599,90.28,COMPUTERSHARE VOUCHER SERVICES,A00991,6,2016
Allerdale Borough Council,10110,Employee Costs,Busy Bees Childcare Scheme,Salary Sacrifice,14/09/2016,165600,"1,641.50",COMPUTERSHARE VOUCHER SERVICES,A00991,6,2016
Allerdale Borough Council,15103,Supplies & Services,Solway Wetlands Project,Purchase of Materials,28/09/2016,165601,"1,500.00",Redacted information - included personal information ,A02338,6,2016
Allerdale Borough Council,15811,Supplies & Services,IT Services,Software Maintenance,16/09/2016,165602,264.99,SAGE (UK) LTD,A01911,6,2016
Allerdale Borough Council,16101,Supplies & Services,Planning and Development,Statutory Notices,07/09/2016,165603,467.46,CUMBRIAN NEWSPAPERS LIMITED,A00869,6,2016
Allerdale Borough Council,16101,Supplies & Services,Planning and Development,Statutory Notices,07/09/2016,165604,410.04,CUMBRIAN NEWSPAPERS LIMITED,A00869,6,2016
Allerdale Borough Council,14202,Transport,Chief Executive,Hire Car and petrol,07/09/2016,165605,81.60,ENTERPRISE RENT A CAR,A01367,6,2016
Allerdale Borough Council,15811,Supplies & Services,Parking Services Pay Group,Software Maintenance,07/09/2016,165606,19.36,RELIANCE HIGH-TECH LTD,C00123,6,2016
Allerdale Borough Council,15811,Supplies & Services,Parking Services Pay Group,Software Maintenance,21/09/2016,165607,106.45,RELIANCE HIGH-TECH LTD,C00123,6,2016
Allerdale Borough Council,15101,Supplies & Services,Public Convenience Cleaning,Equipment Costs,07/09/2016,165608,536.35,INSTOCK (CHANDLERS),A00050,6,2016
Allerdale Borough Council,15401,Supplies & Services,Planning and Development,General Stationery,07/09/2016,165609,23.98,HEATONS OFFICE SOLUTION (PREV LAKELAND/INTEGRITY),A00069,6,2016
Allerdale Borough Council,15401,Supplies & Services,Planning and Development,General Stationery,07/09/2016,165610,-15.98,HEATONS OFFICE SOLUTION (PREV LAKELAND/INTEGRITY),A00069,6,2016
Allerdale Borough Council,15405,Supplies & Services,Electoral Registration,Use of External Printers,07/09/2016,165611,"-1,140.00",PRINT IMAGE NETWORK LIMITED (POSTAGE),A01782,6,2016
Allerdale Borough Council,12408,Premises,Public Convenience Cleaning,Water & Sewage,07/09/2016,165612,53.08,UNITED UTILITIES,X00011,6,2016
Allerdale Borough Council,12408,Premises,Corporate Property Maintenance,Water & Sewage,07/09/2016,165613,22.72,UNITED UTILITIES,X00011,6,2016
Allerdale Borough Council,12408,Premises,Corporate Property Maintenance,Water & Sewage,07/09/2016,165614,12.63,UNITED UTILITIES,X00011,6,2016
Allerdale Borough Council,12408,Premises,Public Convenience Cleaning,Water & Sewage,07/09/2016,165615,16.54,UNITED UTILITIES,X00011,6,2016
Allerdale Borough Council,12408,Premises,Corporate Property Maintenance,Water & Sewage,07/09/2016,165616,106.42,UNITED UTILITIES,X00011,6,2016
Allerdale Borough Council,70104,VAT,Input VAT,VAT - 20%,07/09/2016,165617,33.68,BRITISH GAS ,X00039,6,2016
Allerdale Borough Council,15811,Supplies & Services,IT Services,Software Maintenance,28/09/2016,165618,89.60,PHOENIX SOFTWARE LTD,A00229,6,2016
Allerdale Borough Council,15803,Supplies & Services,IT Services,Hardware Purchase,21/09/2016,165619,161.06,MISCO,A00125,6,2016
Allerdale Borough Council,10401,Employee Costs,Shared IT Services Pay Group,Agency Staff Costs,07/09/2016,165620,517.26,ADECCO RECRUITMENT,A00188,6,2016
Allerdale Borough Council,10601,Employee Costs,Training,External Courses & Seminar Fees,07/09/2016,165621,"7,000.00",CENTRE FOR LEADERSHIP PERFORMANCE,A01504,6,2016
Allerdale Borough Council,51101,Capital Expenditure,Flooding/Landslip,External Contractor Payments (Capital),21/09/2016,165622,"3,514.50",WYG ENGINEERING LTD,A00155,6,2016
Allerdale Borough Council,99999,Not Applicable,9599,Systems Suspense,07/09/2016,165623,27.67,EDMUNDSON ELECTRICAL LTD,A00304,6,2016
Allerdale Borough Council,15800,Supplies & Services,Shared Revs & Bens Projects,Budget-Computing Costs (Non Capital),07/09/2016,165624,"4,387.06",CARLISLE CITY COUNCIL,A00161,6,2016
Allerdale Borough Council,15501,Supplies & Services,Revenue,Consultants Fees,14/09/2016,165625,"11,959.50",CAPACITYGRID T/A LIBERATA UK LTD,C00122,6,2016
Allerdale Borough Council,15808,Supplies & Services,IT Services,Computer Consumables,28/09/2016,165626,382.95,SETON,A01435,6,2016
Allerdale Borough Council,52107,Capital Expenditure,Evolution Centre Food Bank Works,Removal Costs (Capital),07/09/2016,165627,210.00,W G MACKAY LTD,A01711,6,2016
Allerdale Borough Council,20100,Third Party Payments,Museums,Budget-Partnership Services,07/09/2016,165628,"7,500.00",WORKINGTON HERITAGE GROUP LTD,A00339,6,2016
Allerdale Borough Council,15101,Supplies & Services,Public Convenience Cleaning,Equipment Costs,07/09/2016,165629,47.52,WF HYGIENE & CLEANING SUPPLIES,A01794,6,2016
Allerdale Borough Council,15101,Supplies & Services,Public Convenience Cleaning,Equipment Costs,07/09/2016,165630,139.08,WF HYGIENE & CLEANING SUPPLIES,A01794,6,2016
Allerdale Borough Council,15401,Supplies & Services,Document Management Pay Group,General Stationery,28/09/2016,165631,83.96,LYRECO,A00043,6,2016
Allerdale Borough Council,15401,Supplies & Services,Document Management Pay Group,General Stationery,28/09/2016,165632,231.66,LYRECO,A00043,6,2016
Allerdale Borough Council,15401,Supplies & Services,Document Management Pay Group,General Stationery,28/09/2016,165633,68.95,LYRECO,A00043,6,2016
Allerdale Borough Council,15401,Supplies & Services,Document Management Pay Group,General Stationery,28/09/2016,165634,87.10,LYRECO,A00043,6,2016
Allerdale Borough Council,15401,Supplies & Services,Document Management Pay Group,General Stationery,28/09/2016,165635,85.77,LYRECO,A00043,6,2016
Allerdale Borough Council,15401,Supplies & Services,Document Management Pay Group,General Stationery,28/09/2016,165636,70.83,LYRECO,A00043,6,2016
Allerdale Borough Council,15103,Supplies & Services,Solway Wetlands Project,Purchase of Materials,07/09/2016,165637,227.50,TRAVIS PERKINS TRADING,A01117,6,2016
Allerdale Borough Council,16150,Supplies & Services,"The Hub, Workington Town Centre",General Promotions,07/09/2016,165638,400.00,CUMBRIAN NEWSPAPERS LIMITED,A00869,6,2016
Allerdale Borough Council,16150,Supplies & Services,Town Centre Management,General Promotions,07/09/2016,165639,335.00,CUMBRIAN NEWSPAPERS LIMITED,A00869,6,2016
Allerdale Borough Council,16150,Supplies & Services,Town Centre Management,General Promotions,07/09/2016,165640,335.00,CUMBRIAN NEWSPAPERS LIMITED,A00869,6,2016
Allerdale Borough Council,12302,Premises,Solway Coast AONB Core Funding,Building Cleaning,14/09/2016,165641,99.31,ORIAN SOLUTIONS LTD,A01814,6,2016
Allerdale Borough Council,15808,Supplies & Services,Multi-functional Printers,Computer Consumables,28/09/2016,165642,221.50,ANTALIS LIMITED,A00122,6,2016
Allerdale Borough Council,20150,Third Party Payments,Parksafe Contract,General Partnership Service Fees,21/09/2016,165643,"40,372.70",PARKSAFE,A00647,6,2016
Allerdale Borough Council,20150,Third Party Payments,Managed Car Parks,General Partnership Service Fees,21/09/2016,165644,"63,771.40",E H BOOTH & CO LIMITED,A00919,6,2016
Allerdale Borough Council,15604,Supplies & Services,Document Management Pay Group,Franking Machine refills,07/09/2016,165645,40.00,ROYAL MAIL LETTERS,X00021,6,2016
Allerdale Borough Council,54105,Capital Expenditure,Assistance - Housing Services,Grants  Private Individuals (Capital),14/09/2016,165646,"1,440.00",THYSSEN KRUPP ENCASA A DIVISION OF THYSSENKRUPP LIMITED,X00105,6,2016
Allerdale Borough Council,15506,Supplies & Services,Risk Management,Professional Services,14/09/2016,165647,"1,125.00",WALTON GOODLAND LTD,A01226,6,2016
Allerdale Borough Council,81602,Balance Sheet,General Fund,Prov-Insurance Excess (Balance Sheet),14/09/2016,165648,637.00,ZURICH MUNICIPAL,A00429,6,2016
Allerdale Borough Council,51101,Capital Expenditure,New Leisure Facility,External Contractor Payments (Capital),14/09/2016,165649,"10,436.50",PICK EVERARD,A02007,6,2016
Allerdale Borough Council,53101,Capital Expenditure,New Leisure Facility,Purchase of Fixed Plant & Equip Capital,14/09/2016,165650,532.95,J & J ELECTRICAL (CUMBRIA) LTD,C00038,6,2016
Allerdale Borough Council,53101,Capital Expenditure,New Leisure Facility,Purchase of Fixed Plant & Equip Capital,14/09/2016,165651,211.73,J & J ELECTRICAL (CUMBRIA) LTD,C00038,6,2016
Allerdale Borough Council,15102,Supplies & Services,Recycling,Equipment Repair & Maintenance,14/09/2016,165652,697.80,Redacted information - included personal information ,A00176,6,2016
Allerdale Borough Council,15803,Supplies & Services,IT Services,Hardware Purchase,05/10/2016,165653,694.17,UPGRADE OPTIONS LTD,A02316,6,2016
Allerdale Borough Council,21150,Transfer Payments,Apprentices Scheme,General Grants,14/09/2016,165654,"30,000.00",LAKES COLLEGE WEST CUMB,A00093,6,2016
Allerdale Borough Council,15101,Supplies & Services,KMAG Enhancement Activity,Equipment Costs,14/09/2016,165655,751.80,TESS DEMOUNTABLE - DIVN OF CLICKNETHERFIELD LTD,A02327,6,2016
Allerdale Borough Council,15501,Supplies & Services,Estates,Consultants Fees,14/09/2016,165656,"1,380.00",JAMES ANDREW RECRUITMENT SOLUTIONS LTD,A02339,6,2016
Allerdale Borough Council,51101,Capital Expenditure,New Leisure Facility,External Contractor Payments (Capital),14/09/2016,165657,"1,293.00",J & J ELECTRICAL (CUMBRIA) LTD,C00038,6,2016
Allerdale Borough Council,10401,Employee Costs,Environmental Services Pay Group,Agency Staff Costs,05/10/2016,165658,"2,120.00",PRACTICUS LTD,A02237,6,2016
Allerdale Borough Council,15811,Supplies & Services,IT Services,Software Maintenance,14/09/2016,165659,"2,408.33",CARLISLE CITY COUNCIL,A00161,6,2016
Allerdale Borough Council,15405,Supplies & Services,Electoral Registration,Use of External Printers,14/09/2016,165660,"3,762.33",PRINT IMAGE NETWORK LIMITED,A01127,6,2016
Allerdale Borough Council,15506,Supplies & Services,Estates,Professional Services,14/09/2016,165661,"2,850.00",DAY CUMMINS LIMITED,A00131,6,2016
Allerdale Borough Council,26000,Earmarked Reserves,Shared Revs & Bens Projects,Budget-Expd funded from Reserve,14/09/2016,165662,962.00,MORGAN HUNT PUBLIC SECTOR,A00725,6,2016
Allerdale Borough Council,15501,Supplies & Services,Parks Development,Consultants Fees,14/09/2016,165663,"1,000.00",CATHY NEWBERY LIMITED,A02064,6,2016
Allerdale Borough Council,16102,Supplies & Services,LEP Flood Recovery Events Funding,Regeneration Initiatives,14/09/2016,165664,"5,000.00",KESWICK TOURISM ASSOCIATION,A01882,6,2016
Allerdale Borough Council,15404,Supplies & Services,Legal Services,Reference Materials,21/09/2016,165665,310.00,SWEET & MAXWELL (THOMSON REUTERS),A00028,6,2016
Allerdale Borough Council,14150,Transport,Gates Travel,General-Council Vehicles (Non-Capital),28/09/2016,165666,863.90,GATES TRAVEL,A01525,6,2016
Allerdale Borough Council,10605,Employee Costs,Members Services,Travel,14/09/2016,165667,80.00,KEN ROUTLEDGE TRAVEL LTD,A00192,6,2016
Allerdale Borough Council,15501,Supplies & Services,Street Cleansing,Consultants Fees,05/10/2016,165668,16.00,DUNDAS CHEMICAL CO (MOSSPARK),A00175,6,2016
Allerdale Borough Council,34150,Income,Building Control - Chargeable,General Recovery of Other Costs-Income,14/09/2016,165669,15.00,WAUGH & MUSGRAVE,R00001,6,2016
Allerdale Borough Council,15502,Supplies & Services,Legal Services,Land Registry Fees,,165670,57.00,HM LAND REGISTRY,A00505,6,2016
Allerdale Borough Council,15502,Supplies & Services,Legal Services,Land Registry Fees,,165671,21.00,HM LAND REGISTRY,A00505,6,2016
Allerdale Borough Council,15502,Supplies & Services,Legal Services,Land Registry Fees,,165672,60.00,HM LAND REGISTRY,A00505,6,2016
Allerdale Borough Council,15502,Supplies & Services,Revenue,Land Registry Fees,,165673,15.00,HM LAND REGISTRY,A00505,6,2016
Allerdale Borough Council,15502,Supplies & Services,Legal Services,Land Registry Fees,06/09/2016,165674,30.00,HM LAND REGISTRY,A00505,6,2016
Allerdale Borough Council,16350,Supplies & Services,Director of Resources & PA,Miscellaneous Expenses,14/09/2016,165675,100.00,HAYES AND PARKINSON,M00961,6,2016
Allerdale Borough Council,10309,Employee Costs,Pension Deficit Employer Contribution,Pension Deficit Payments,14/09/2016,165676,"980,200.00",CUMBRIA LGPS - CARLISLE,M00626,6,2016
Allerdale Borough Council,33121,Income,Off-street - Owned,Excess Charges - Car Parks Income,14/09/2016,165677,5.20,Redacted information - included personal information ,M00962,6,2016
Allerdale Borough Council,33112,Income,Planning and Development,Planning Fees Income,14/09/2016,165678,"23,764.00",PERSIMMON HOMES LANCASHIRE,M00963,6,2016
Allerdale Borough Council,10401,Employee Costs,Shared IT Services Pay Group,Agency Staff Costs,14/09/2016,165679,513.77,ADECCO RECRUITMENT,A00188,6,2016
Allerdale Borough Council,15505,Supplies & Services,Planning and Development,Licences,28/09/2016,165680,10.52,CENTREMAPS,A00512,6,2016
Allerdale Borough Council,15104,Supplies & Services,Bereavement Services,Supplies for Resale,14/09/2016,165681,57.00,GRANART,A00644,6,2016
Allerdale Borough Council,52107,Capital Expenditure,Evolution Centre Food Bank Works,Removal Costs (Capital),14/09/2016,165682,261.00,Redacted information - included personal information ,C00008,6,2016
Allerdale Borough Council,52107,Capital Expenditure,Evolution Centre Food Bank Works,Removal Costs (Capital),14/09/2016,165683,812.00,Redacted information - included personal information ,C00008,6,2016
Allerdale Borough Council,52107,Capital Expenditure,Evolution Centre Food Bank Works,Removal Costs (Capital),14/09/2016,165684,276.00,Redacted information - included personal information ,C00008,6,2016
Allerdale Borough Council,50198,Capital Expenditure,Demolition of Moorclose Sports Centre,Site Clearance / Demolition (Capital),14/09/2016,165685,"1,052.00",Redacted information - included personal information ,C00008,6,2016
Allerdale Borough Council,52107,Capital Expenditure,Evolution Centre Food Bank Works,Removal Costs (Capital),14/09/2016,165686,"2,000.00",BARRIE HAIGH PAINTING CONTRACTOR,A01607,6,2016
Allerdale Borough Council,12307,Premises,Corporate Property Maintenance,Fixtures and Fittings,05/10/2016,165687,136.65,THYSSENKRUPP ELEVATOR UK LTD,C00072,6,2016
Allerdale Borough Council,12301,Premises,Corporate Property Maintenance,Security,14/09/2016,165688,269.95,G4S SECURE SOLUTIONS,A01597,6,2016
Allerdale Borough Council,12100,Premises,Parks and Grounds Maintenance,Budget-External Maintenance & Decoration,,165689,350.00,ISS WATERERS LANDSCAPE,C00044,6,2016
Allerdale Borough Council,15506,Supplies & Services,Environmental Protection,Professional Services,14/09/2016,165690,"4,124.50",ANDIDRAIN,A01003,6,2016
Allerdale Borough Council,12101,Premises,Corporate Property Maintenance,External Maintenance & Decoration,21/09/2016,165691,598.40,JOHN ELLIOTT LIMITED,C00023,6,2016
Allerdale Borough Council,20101,Third Party Payments,Recycling,Cleansing Contract,14/09/2016,165692,903.96,CUMBRIA WASTE MANAGEMENT LTD,A01304,6,2016
Allerdale Borough Council,20101,Third Party Payments,Recycling,Cleansing Contract,14/09/2016,165693,167.73,CUMBRIA WASTE MANAGEMENT LTD,A01304,6,2016
Allerdale Borough Council,20101,Third Party Payments,Recycling,Cleansing Contract,14/09/2016,165694,"2,152.77",CUMBRIA WASTE MANAGEMENT LTD,A01304,6,2016
Allerdale Borough Council,20101,Third Party Payments,Recycling,Cleansing Contract,14/09/2016,165695,"2,861.68",CUMBRIA WASTE MANAGEMENT LTD,A01304,6,2016
Allerdale Borough Council,20101,Third Party Payments,Recycling,Cleansing Contract,14/09/2016,165696,"3,072.54",CUMBRIA WASTE MANAGEMENT LTD,A01304,6,2016
Allerdale Borough Council,20101,Third Party Payments,Recycling,Cleansing Contract,14/09/2016,165697,"2,328.22",CUMBRIA WASTE MANAGEMENT LTD,A01304,6,2016
Allerdale Borough Council,20101,Third Party Payments,Recycling,Cleansing Contract,14/09/2016,165698,"3,583.40",CUMBRIA WASTE MANAGEMENT LTD,A01304,6,2016
Allerdale Borough Council,52107,Capital Expenditure,Evolution Centre Food Bank Works,Removal Costs (Capital),14/09/2016,165699,827.00,Redacted information - included personal information ,C00008,6,2016
Allerdale Borough Council,20101,Third Party Payments,Recycling,Cleansing Contract,14/09/2016,165700,"2,923.59",CUMBRIA WASTE MANAGEMENT LTD,A01304,6,2016
Allerdale Borough Council,15501,Supplies & Services,Planning and Development,Consultants Fees,28/09/2016,165701,"1,000.00",KINGS CHAMBERS,A00348,6,2016
Allerdale Borough Council,10601,Employee Costs,Training,External Courses & Seminar Fees,14/09/2016,165702,195.00,IDOX INFORMATION SOLUTIONS LTD,A01788,6,2016
Allerdale Borough Council,15812,Supplies & Services,Licensing Service,Software Development,14/09/2016,165703,"1,250.00",IDOX SOFTWARE LTD,A00291,6,2016
Allerdale Borough Council,15101,Supplies & Services,Public Convenience Cleaning,Equipment Costs,21/09/2016,165704,8.64,INSTOCK (CHANDLERS),A00050,6,2016
Allerdale Borough Council,20101,Third Party Payments,Recycling,Cleansing Contract,21/09/2016,165705,"3,112.66",CUMBRIA WASTE MANAGEMENT LTD,A01304,6,2016
Allerdale Borough Council,20101,Third Party Payments,Recycling,Cleansing Contract,14/09/2016,165706,"2,702.04",CUMBRIA WASTE MANAGEMENT LTD,A01304,6,2016
Allerdale Borough Council,16301,Supplies & Services,KMAG Enhancement Activity,Reimbursement,14/09/2016,165707,"1,144.44",KESWICK MUSEUM & ART GALLERY,A00337,6,2016
Allerdale Borough Council,14105,Transport,Asset Management Pay Group,"Fuel, Lubricants & Consumables",,165708,489.20,BP OIL UK LTD,X00022,6,2016
Allerdale Borough Council,14105,Transport,Parking Services Pay Group,"Fuel, Lubricants & Consumables",,165709,396.98,BP OIL UK LTD,X00022,6,2016
Allerdale Borough Council,14105,Transport,Solway Coast AONB Core Funding,"Fuel, Lubricants & Consumables",,165710,606.73,BP OIL UK LTD,X00022,6,2016
Allerdale Borough Council,14105,Transport,Parking Services Pay Group,"Fuel, Lubricants & Consumables",,165711,431.56,BP OIL UK LTD,X00022,6,2016
Allerdale Borough Council,14105,Transport,Solway Coast AONB Core Funding,"Fuel, Lubricants & Consumables",,165712,377.71,BP OIL UK LTD,X00022,6,2016
Allerdale Borough Council,15603,Supplies & Services,Document Management Pay Group,Franking Machine Costs,28/09/2016,165713,300.00,THE MAILING ROOM (TMR EXECUTIVE AGENCY LTD),A00733,6,2016
Allerdale Borough Council,10401,Employee Costs,Customer Services Pay Group,Agency Staff Costs,14/09/2016,165714,517.26,ADECCO RECRUITMENT,A00188,6,2016
Allerdale Borough Council,14202,Transport,Chief Executive,Hire Car and petrol,14/09/2016,165715,128.50,ENTERPRISE RENT A CAR,A01367,6,2016
Allerdale Borough Council,15403,Supplies & Services,Communications and Marketing,Publications and Periodicals,14/09/2016,165716,97.20,P & D NEWSAGENTS,A00237,6,2016
Allerdale Borough Council,10501,Employee Costs,Advertising Vacancies,Advertising Vacancies,14/09/2016,165717,632.64,CUMBRIAN NEWSPAPERS LIMITED,A00869,6,2016
Allerdale Borough Council,14202,Transport,Head of Service - PA Pay Group,Hire Car and petrol,14/09/2016,165718,71.89,ENTERPRISE RENT A CAR,A01367,6,2016
Allerdale Borough Council,10601,Employee Costs,Training,External Courses & Seminar Fees,14/09/2016,165719,19.85,K&R BADGES LIMITED,A01328,6,2016
Allerdale Borough Council,20150,Third Party Payments,new Lighting Columns,General Partnership Service Fees,14/09/2016,165720,"11,203.01",CUMBRIA CC - GENERAL,A00066,6,2016
Allerdale Borough Council,15501,Supplies & Services,Planning Policy,Consultants Fees,21/09/2016,165721,"1,117.75",WYG ENVIRONMENT PLANNING TRANSPORT LTD,A01785,6,2016
Allerdale Borough Council,12305,Premises,Corporate Property Maintenance,Inspections and Services,21/09/2016,165722,6.42,PHS GROUP LTD,C00028,6,2016
Allerdale Borough Council,12305,Premises,Corporate Property Maintenance,Inspections and Services,21/09/2016,165723,6.42,PHS GROUP LTD,C00028,6,2016
Allerdale Borough Council,12305,Premises,Corporate Property Maintenance,Inspections and Services,21/09/2016,165724,4.28,PHS GROUP LTD,C00028,6,2016
Allerdale Borough Council,12305,Premises,Public Convenience Cleaning,Inspections and Services,21/09/2016,165725,41.73,PHS GROUP LTD,C00028,6,2016
Allerdale Borough Council,15503,Supplies & Services,Revenue,Court and Tribunal Costs,14/09/2016,165726,"1,425.00",HMCTS - WEST CUMBRIA COURT HOUSE,A00275,6,2016
Allerdale Borough Council,12305,Premises,Corporate Property Maintenance,Inspections and Services,14/09/2016,165727,49.00,AQUAID (NORTH),A00123,6,2016
Allerdale Borough Council,12305,Premises,Corporate Property Maintenance,Inspections and Services,14/09/2016,165728,392.00,AQUAID (NORTH),A00123,6,2016
Allerdale Borough Council,12305,Premises,Corporate Property Maintenance,Inspections and Services,14/09/2016,165729,49.00,AQUAID (NORTH),A00123,6,2016
Allerdale Borough Council,15601,Supplies & Services,Benefits,Postage,14/09/2016,165730,"1,307.21",ROYAL MAIL LETTERS,X00021,6,2016
Allerdale Borough Council,15501,Supplies & Services,Revenue,Consultants Fees,14/09/2016,165731,15.00,ROSSENDALES LTD,A00964,6,2016
Allerdale Borough Council,10110,Employee Costs,Chief Executive,Salary Sacrifice,14/09/2016,165732,"1,893.30",TUSKERDIRECT LTD,A02186,6,2016
Allerdale Borough Council,15702,Supplies & Services,Off-street - Owned,Line Rentals,28/09/2016,165733,"2,129.56",COBALT TELEPHONE TECHNOLOGY,A01008,6,2016
Allerdale Borough Council,15804,Supplies & Services,IT Services,Computer Data Lines B.T.,28/09/2016,165734,"1,668.54",VODAFONE (PREV CABLE & WIRELESS),A00934,6,2016
Allerdale Borough Council,15703,Supplies & Services,IT Services,Call Charges,21/09/2016,165735,"1,053.18",VODAFONE (PREV CABLE & WIRELESS),A00934,6,2016
Allerdale Borough Council,12408,Premises,Public Convenience Cleaning,Water & Sewage,14/09/2016,165736,33.68,UNITED UTILITIES,X00011,6,2016
Allerdale Borough Council,15803,Supplies & Services,IT Services,Hardware Purchase,21/09/2016,165737,"1,251.48",MISCO,A00125,6,2016
Allerdale Borough Council,15803,Supplies & Services,IT Services,Hardware Purchase,21/09/2016,165738,"-1,262.74",MISCO,A00125,6,2016
Allerdale Borough Council,12403,Premises,Corporate Property Maintenance,Gas,14/09/2016,165739,61.83,BRITISH GAS,X00039,6,2016
Allerdale Borough Council,12402,Premises,Corporate Property Maintenance,Electricity,14/09/2016,165740,472.80,N POWER,X00015,6,2016
Allerdale Borough Council,12402,Premises,Car Parks Inspection & Maintenance,Electricity,14/09/2016,165741,84.61,N POWER,X00015,6,2016
Allerdale Borough Council,15501,Supplies & Services,Revenue,Consultants Fees,21/09/2016,165742,15.00,ROSSENDALES LTD,A00964,6,2016
Allerdale Borough Council,12408,Premises,Public Convenience Cleaning,Water & Sewage,14/09/2016,165743,62.55,UNITED UTILITIES,X00011,6,2016
Allerdale Borough Council,15503,Supplies & Services,Legal Services,Court and Tribunal Costs,14/09/2016,165744,100.00,HM COURT SERVICE,A00913,6,2016
Allerdale Borough Council,54102,Capital Expenditure,Cluster of Empty Homes,Grants Commercial Organisations (Capital,14/09/2016,165745,"1,500.00",FELL VIEW PROPERTIES LIMITED,X00225,6,2016
Allerdale Borough Council,16003,Supplies & Services,Off-street - Owned,Security of Cash Movements,14/09/2016,165746,"4,092.00",SECURITY PLUS LIMITED,A00503,6,2016
Allerdale Borough Council,16003,Supplies & Services,Off-street - Owned,Security of Cash Movements,14/09/2016,165747,84.00,SECURITY PLUS LIMITED,A00503,6,2016
Allerdale Borough Council,16003,Supplies & Services,Off-street - Owned,Security of Cash Movements,14/09/2016,165748,102.00,SECURITY PLUS LIMITED,A00503,6,2016
Allerdale Borough Council,16003,Supplies & Services,Off-street - Owned,Security of Cash Movements,14/09/2016,165749,"4,056.00",SECURITY PLUS LIMITED,A00503,6,2016
Allerdale Borough Council,16003,Supplies & Services,Off-street - Owned,Security of Cash Movements,14/09/2016,165750,552.00,SECURITY PLUS LIMITED,A00503,6,2016
Allerdale Borough Council,51101,Capital Expenditure,Workington Hall Repairs,External Contractor Payments (Capital),14/09/2016,165751,375.00,MOSEDALE GILLATT,A01020,6,2016
Allerdale Borough Council,16350,Supplies & Services,Museums,Miscellaneous Expenses,14/09/2016,165752,"2,000.00",WORKINGTON HERITAGE GROUP LTD,A00339,6,2016
Allerdale Borough Council,15302,Supplies & Services,Building Control - Chargeable,Protective Clothing,05/10/2016,165753,136.95,KELTIC,A00017,6,2016
Allerdale Borough Council,21303,Transfer Payments,Parish Councils,Parish Councils,15/09/2016,165754,"11,902.62",ABOVE DERWENT PC,X00042,6,2016
Allerdale Borough Council,21303,Transfer Payments,Parish Councils,Parish Councils,15/09/2016,165755,"2,250.01",AIKTON P.C.,X00043,6,2016
Allerdale Borough Council,21303,Transfer Payments,Parish Councils,Parish Councils,15/09/2016,165756,"5,070.16",ALLERBY & OUGHTERSIDE P,X00044,6,2016
Allerdale Borough Council,21303,Transfer Payments,Parish Councils,Parish Councils,15/09/2016,165757,"4,499.99",ALLHALLOWS P.C.,X00045,6,2016
Allerdale Borough Council,21303,Transfer Payments,Parish Councils,Parish Councils,15/09/2016,165758,"4,500.00",ALLONBY P.C.,X00046,6,2016
Allerdale Borough Council,21303,Transfer Payments,Parish Councils,Parish Councils,15/09/2016,165759,"31,250.00",ASPATRIA T.C.,X00047,6,2016
Allerdale Borough Council,21303,Transfer Payments,Parish Councils,Parish Councils,15/09/2016,165760,"3,718.99",BASSENTHWAITE P.C.,X00048,6,2016
Allerdale Borough Council,21303,Transfer Payments,Parish Councils,Parish Councils,15/09/2016,165761,"4,750.00",BLENNERHASSETT P.C.,X00050,6,2016
Allerdale Borough Council,21303,Transfer Payments,Parish Councils,Parish Councils,15/09/2016,165762,"1,700.00",BLINDBOTHEL P.C.,X00051,6,2016
Allerdale Borough Council,21303,Transfer Payments,Parish Councils,Parish Councils,15/09/2016,165763,"3,050.99",BLINDCRAKE P.C.,X00052,6,2016
Allerdale Borough Council,21303,Transfer Payments,Parish Councils,Parish Councils,15/09/2016,165764,"2,374.99",BOLTONS P.C.,X00053,6,2016
Allerdale Borough Council,21303,Transfer Payments,Parish Councils,Parish Councils,15/09/2016,165765,"2,477.39",BORROWDALE P.C.,X00054,6,2016
Allerdale Borough Council,21303,Transfer Payments,Parish Councils,Parish Councils,15/09/2016,165766,"2,499.99",BOTHEL P.C.,X00055,6,2016
Allerdale Borough Council,21303,Transfer Payments,Parish Councils,Parish Councils,15/09/2016,165767,"9,575.67",BOWNESS P.C.,X00056,6,2016
Allerdale Borough Council,21303,Transfer Payments,Parish Councils,Parish Councils,15/09/2016,165768,"3,223.76",BRIDEKIRK P.C.,X00057,6,2016
Allerdale Borough Council,21303,Transfer Payments,Parish Councils,Parish Councils,15/09/2016,165769,"4,823.51",BRIGHAM P.C.,X00058,6,2016
Allerdale Borough Council,21303,Transfer Payments,Parish Councils,Parish Councils,15/09/2016,165770,"3,000.00",BROMFIELD P.C.,X00059,6,2016
Allerdale Borough Council,21303,Transfer Payments,Parish Councils,Parish Councils,15/09/2016,165771,"6,363.16",BROUGHTON P.C.,X00060,6,2016
Allerdale Borough Council,21303,Transfer Payments,Parish Councils,Parish Councils,15/09/2016,165772,"7,599.99",BROUGHTON MOOR P.C.,X00061,6,2016
Allerdale Borough Council,21303,Transfer Payments,Parish Councils,Parish Councils,15/09/2016,165773,699.99,BUTTERMERE P.C.,X00062,6,2016
Allerdale Borough Council,21303,Transfer Payments,Parish Councils,Parish Councils,15/09/2016,165774,"5,949.99",CALDBECK P.C.,X00063,6,2016
Allerdale Borough Council,21303,Transfer Payments,Parish Councils,Parish Councils,15/09/2016,165775,791.52,CAMERTON P.C.,X00064,6,2016
Allerdale Borough Council,21303,Transfer Payments,Parish Councils,Parish Councils,15/09/2016,165776,"94,080.50",COCKERMOUTH T.C.,X00065,6,2016
Allerdale Borough Council,21303,Transfer Payments,Parish Councils,Parish Councils,15/09/2016,165777,"5,576.26",CROSSCANONBY P.C.,X00066,6,2016
Allerdale Borough Council,21303,Transfer Payments,Parish Councils,Parish Councils,15/09/2016,165778,"7,149.99",DEAN P.C.,X00067,6,2016
Allerdale Borough Council,21303,Transfer Payments,Parish Councils,Parish Councils,15/09/2016,165779,"13,249.99",DEARHAM P.C.,X00068,6,2016
Allerdale Borough Council,21303,Transfer Payments,Parish Councils,Parish Councils,15/09/2016,165780,875.00,DUNDRAW P.C.,X00069,6,2016
Allerdale Borough Council,21303,Transfer Payments,Parish Councils,Parish Councils,15/09/2016,165781,"2,041.24",EMBLETON P.C.,X00070,6,2016
Allerdale Borough Council,21303,Transfer Payments,Parish Councils,Parish Councils,15/09/2016,165782,"4,199.99",GILCRUX P.C.,X00071,6,2016
Allerdale Borough Council,21303,Transfer Payments,Parish Councils,Parish Councils,15/09/2016,165783,"5,519.60",GREAT CLIFTON P.C.,X00072,6,2016
Allerdale Borough Council,21303,Transfer Payments,Parish Councils,Parish Councils,15/09/2016,165784,"6,000.00",GREYSOUTHERN P.C.,X00073,6,2016
Allerdale Borough Council,21303,Transfer Payments,Parish Councils,Parish Councils,15/09/2016,165785,"2,000.00",HAYTON & MEALO P.C.,X00074,6,2016
Allerdale Borough Council,21303,Transfer Payments,Parish Councils,Parish Councils,15/09/2016,165786,"6,359.99",HOLME ABBEY P.C.,X00075,6,2016
Allerdale Borough Council,21303,Transfer Payments,Parish Councils,Parish Councils,15/09/2016,165787,"3,274.91",HOLME EAST WEAVER P.C.,X00076,6,2016
Allerdale Borough Council,21303,Transfer Payments,Parish Councils,Parish Councils,15/09/2016,165788,"1,000.00",HOLME LOW P.C.,X00077,6,2016
Allerdale Borough Council,21303,Transfer Payments,Parish Councils,Parish Councils,15/09/2016,165789,"2,500.00",HOLME ST CUTHBERT P.C.,X00078,6,2016
Allerdale Borough Council,21303,Transfer Payments,Parish Councils,Parish Councils,15/09/2016,165790,"3,220.00",IREBY & ULDALE P.C.,X00079,6,2016
Allerdale Borough Council,21303,Transfer Payments,Parish Councils,Parish Councils,15/09/2016,165791,"102,186.02",KESWICK T.C.,X00080,6,2016
Allerdale Borough Council,21303,Transfer Payments,Parish Councils,Parish Councils,15/09/2016,165792,"3,543.00",KIRKBAMPTON P.C.,X00081,6,2016
Allerdale Borough Council,21303,Transfer Payments,Parish Councils,Parish Councils,15/09/2016,165793,"4,969.36",KIRKBRIDE P.C.,X00082,6,2016
Allerdale Borough Council,21303,Transfer Payments,Parish Councils,Parish Councils,15/09/2016,165794,"2,724.99",LITTLE CLIFTON P.C.,X00083,6,2016
Allerdale Borough Council,21303,Transfer Payments,Parish Councils,Parish Councils,15/09/2016,165795,"2,750.00",LORTON P.C.,X00084,6,2016
Allerdale Borough Council,21303,Transfer Payments,Parish Councils,Parish Councils,15/09/2016,165796,"1,225.00",LOWESWATER P.C.,X00085,6,2016
Allerdale Borough Council,21303,Transfer Payments,Parish Councils,Parish Councils,15/09/2016,165797,"99,847.99",MARYPORT T.C.,X00086,6,2016
Allerdale Borough Council,21303,Transfer Payments,Parish Councils,Parish Councils,15/09/2016,165798,"4,479.99",PAPCASTLE P.C.,X00087,6,2016
Allerdale Borough Council,21303,Transfer Payments,Parish Councils,Parish Councils,15/09/2016,165799,"2,574.75",PLUMBLAND P.C.,X00088,6,2016
Allerdale Borough Council,21303,Transfer Payments,Parish Councils,Parish Councils,15/09/2016,165800,"25,862.56",SEATON P.C.,X00089,6,2016
Allerdale Borough Council,21303,Transfer Payments,Parish Councils,Parish Councils,15/09/2016,165801,255.30,SETMURTHY P.C.,X00091,6,2016
Allerdale Borough Council,21303,Transfer Payments,Parish Councils,Parish Councils,15/09/2016,165802,"83,655.49",SILLOTH T.C.,X00092,6,2016
Allerdale Borough Council,21303,Transfer Payments,Parish Councils,Parish Councils,15/09/2016,165803,"2,283.22",SEBERGHAM P.C.,X00090,6,2016
Allerdale Borough Council,21303,Transfer Payments,Parish Councils,Parish Councils,15/09/2016,165804,"3,000.01",ST JOHNS P.C.,X00093,6,2016
Allerdale Borough Council,21303,Transfer Payments,Parish Councils,Parish Councils,15/09/2016,165805,"11,117.49",THURSBY P.C.,X00094,6,2016
Allerdale Borough Council,21303,Transfer Payments,Parish Councils,Parish Councils,15/09/2016,165806,"2,421.36",UNDERSKIDDAW P.C.,X00095,6,2016
Allerdale Borough Council,21303,Transfer Payments,Parish Councils,Parish Councils,15/09/2016,165807,"2,100.00",WAVERTON P.C.,X00096,6,2016
Allerdale Borough Council,21303,Transfer Payments,Parish Councils,Parish Councils,15/09/2016,165808,"2,500.00",WESTNEWTON P.C.,X00097,6,2016
Allerdale Borough Council,21303,Transfer Payments,Parish Councils,Parish Councils,15/09/2016,165809,"3,000.01",WESTWARD P.C.,X00098,6,2016
Allerdale Borough Council,21303,Transfer Payments,Parish Councils,Parish Councils,28/09/2016,165810,"95,502.50",WIGTON TOWN COUNCIL,X00099,6,2016
Allerdale Borough Council,21303,Transfer Payments,Parish Councils,Parish Councils,15/09/2016,165811,"1,499.99",WINSCALES P.C.,X00100,6,2016
Allerdale Borough Council,21303,Transfer Payments,Parish Councils,Parish Councils,15/09/2016,165812,"4,310.51",WOODSIDE P.C.,X00101,6,2016
Allerdale Borough Council,21303,Transfer Payments,Parish Councils,Parish Councils,15/09/2016,165813,"203,410.00",WORKINGTON T.C.,X00102,6,2016
Allerdale Borough Council,21303,Transfer Payments,Parish Councils,Parish Councils,15/09/2016,165814,430.08,WYTHOP P.C.,X00103,6,2016
Allerdale Borough Council,16350,Supplies & Services,Sports Development,Miscellaneous Expenses,21/09/2016,165815,100.00,WORKINGTON AFC,M00532,6,2016
Allerdale Borough Council,21150,Transfer Payments,Festivals & Events,General Grants,21/09/2016,165816,100.00,Redacted information - included personal information ,M00905,6,2016
Allerdale Borough Council,21150,Transfer Payments,Festivals & Events,General Grants,21/09/2016,165817,100.00,COCKERMOUTH FESTIVALS GROUP,M00518,6,2016
Allerdale Borough Council,72104,Holding and Control Accounts,Debtor Control Account,Debtors (Control Account),21/09/2016,165818,"5,765.04",W F SUPPORT SERVICES LTD,M00964,6,2016
Allerdale Borough Council,33118,Income,Off-street - Owned,Car Parks - Season Tickets Income,21/09/2016,165819,93.75,Redacted information - included personal information ,M00965,6,2016
Allerdale Borough Council,14105,Transport,Parking Services Pay Group,"Fuel, Lubricants & Consumables",,165820,464.67,BP OIL UK LTD ,X00022,6,2016
Allerdale Borough Council,14105,Transport,Parking Services Pay Group,"Fuel, Lubricants & Consumables",,165821,364.70,BP OIL UK LTD ,X00022,6,2016
Allerdale Borough Council,16301,Supplies & Services,Sports Development,Reimbursement,21/09/2016,165822,181.44,CUMBERLAND ATHLETICS CLUB,M00966,6,2016
Allerdale Borough Council,10401,Employee Costs,Housing & Health Pay Group,Agency Staff Costs,05/10/2016,165823,358.40,HAYS SPECIALIST RECRUITMENT LTD,A00280,6,2016
Allerdale Borough Council,15506,Supplies & Services,Environmental Protection,Professional Services,28/09/2016,165824,300.60,UNITED UTILITIES PLC,A01657,6,2016
Allerdale Borough Council,15508,Supplies & Services,Banking and Interest,Subscriptions,05/10/2016,165825,"3,069.00",CIPFA,A00572,6,2016
Allerdale Borough Council,15802,Supplies & Services,IT Services,Hardware Maintenance,21/09/2016,165826,"2,702.90",INTRINSIC TECHNOLOGY LTD,A00902,6,2016
Allerdale Borough Council,15101,Supplies & Services,Domestic Waste,Equipment Costs,,165827,"1,839.00",PLASTIC OMNIUM URBAN SYSTEMS LTD,A00159,6,2016
Allerdale Borough Council,14101,Transport,Workington Nature Partnership,Vehicle Leasing,21/09/2016,165828,250.00,DOBIES VAUXHALL,A00254,6,2016
Allerdale Borough Council,14101,Transport,Trade Waste,Vehicle Leasing,21/09/2016,165829,"3,015.00",DOBIES VAUXHALL,A00254,6,2016
Allerdale Borough Council,14101,Transport,Trade Waste,Vehicle Leasing,21/09/2016,165830,"3,015.00",DOBIES VAUXHALL,A00254,6,2016
Allerdale Borough Council,14105,Transport,Recycling,"Fuel, Lubricants & Consumables",21/09/2016,165831,"3,015.00",DOBIES VAUXHALL,A00254,6,2016
Allerdale Borough Council,14101,Transport,Parks and Grounds Maintenance,Vehicle Leasing,21/09/2016,165832,"3,015.00",DOBIES VAUXHALL,A00254,6,2016
Allerdale Borough Council,10203,Employee Costs,Regeneration Pay Group,Subsistence Allowance,21/09/2016,165833,29.79,ENTERPRISE RENT A CAR,A01367,6,2016
Allerdale Borough Council,15501,Supplies & Services,Estates,Consultants Fees,21/09/2016,165834,"2,300.00",JAMES ANDREW RECRUITMENT SOLUTIONS LTD,A02339,6,2016
Allerdale Borough Council,15811,Supplies & Services,IT Services,Software Maintenance,,165835,"10,000.00",CIVICA UK LIMITED,A00006,6,2016
Allerdale Borough Council,26000,Earmarked Reserves,Shared Revs & Bens Projects,Budget-Expd funded from Reserve,21/09/2016,165836,962.00,MORGAN HUNT PUBLIC SECTOR,A00725,6,2016
Allerdale Borough Council,12301,Premises,Corporate Property Maintenance,Security,21/09/2016,165837,239.74,PRO-TEC SYSTEMS,C00026,6,2016
Allerdale Borough Council,15101,Supplies & Services,Domestic Waste,Equipment Costs,,165838,"7,974.00",PLASTIC OMNIUM URBAN SYSTEMS LTD,A00159,6,2016
Allerdale Borough Council,15803,Supplies & Services,IT Services,Hardware Purchase,21/09/2016,165839,"5,138.72",UPGRADE OPTIONS LTD,A02316,6,2016
Allerdale Borough Council,15201,Supplies & Services,Chief Executive,Entertainment Of Visitors,,165840,39.63,BARCLAYCARD COMMERCIAL,X00207,6,2016
Allerdale Borough Council,16350,Supplies & Services,Leaders Portfolio,Miscellaneous Expenses,28/09/2016,165841,"3,000.00",WIGTON COMMUNITY AMATEUR BOXING CLUB,M00967,6,2016
Allerdale Borough Council,16150,Supplies & Services,Maryport Shop Front Improvements,General Promotions,21/09/2016,165842,900.00,Redacted information - included personal information ,M00968,6,2016
Allerdale Borough Council,15101,Supplies & Services,Corporate Property Maintenance,Equipment Costs,21/09/2016,165843,16.88,ALLERDALE BOROUGH COUNCIL,X00034,6,2016
Allerdale Borough Council,15101,Supplies & Services,Homelessness,Equipment Costs,21/09/2016,165844,38.77,ALLERDALE BOROUGH COUNCIL,X00034,6,2016
Allerdale Borough Council,20300,Third Party Payments,Recycling,Budget-Contract Services,21/09/2016,165845,"368,368.17",FCC ENVIRONMENT SERVICES (FOCSA),A00085,6,2016
Allerdale Borough Council,12103,Premises,Bereavement Services,Grounds Maintenance,21/09/2016,165846,400.00,CUMBRIA HEADSTONES,A02358,6,2016
Allerdale Borough Council,10401,Employee Costs,Environmental Services Pay Group,Agency Staff Costs,,165847,"2,120.00",PRACTICUS LTD,A02237,6,2016
Allerdale Borough Council,15501,Supplies & Services,Parks and Grounds Maintenance,Consultants Fees,21/09/2016,165848,75.60,Redacted information - included personal information ,A02110,6,2016
Allerdale Borough Council,15604,Supplies & Services,Document Management Pay Group,Franking Machine refills,21/09/2016,165849,"10,000.00",FP TELESET,A00428,6,2016
Allerdale Borough Council,16302,Supplies & Services,Sports Development,Room Hire,21/09/2016,165850,60.00,ENTRA,A02331,6,2016
Allerdale Borough Council,16150,Supplies & Services,KMAG Enhancement Activity,General Promotions,21/09/2016,165851,19.74,MCKANES PRINTERS,A01507,6,2016
Allerdale Borough Council,15508,Supplies & Services,KMAG Enhancement Activity,Subscriptions,21/09/2016,165852,293.50,KESWICK TOURISM ASSOCIATION,A01882,6,2016
Allerdale Borough Council,16302,Supplies & Services,Sports Development,Room Hire,21/09/2016,165853,70.00,ALL SOULS PAROCHIAL CHURC COUNCIL,A02336,6,2016
Allerdale Borough Council,15405,Supplies & Services,Parking Services Pay Group,Use of External Printers,05/10/2016,165854,115.00,NAGELS UK LTD,A01182,6,2016
Allerdale Borough Council,15506,Supplies & Services,Sports Development,Professional Services,21/09/2016,165855,490.00,ASPATRIA RUGBY UNION FOOTBALL CLUB LTD,M00234,6,2016
Allerdale Borough Council,15810,Supplies & Services,Museums,Software Licences,21/09/2016,165856,252.00,MODES USER ASSOCIATION,A00796,6,2016
Allerdale Borough Council,10601,Employee Costs,Anti Poverty,External Courses & Seminar Fees,05/10/2016,165857,175.00,CHILD POVERTY ACTION GROUP,A00866,6,2016
Allerdale Borough Council,10601,Employee Costs,Anti Poverty,External Courses & Seminar Fees,05/10/2016,165858,175.00,CHILD POVERTY ACTION GROUP,A00866,6,2016
Allerdale Borough Council,14101,Transport,Homelessness,Vehicle Leasing,21/09/2016,165859,171.74,DOBIES VAUXHALL,A00254,6,2016
Allerdale Borough Council,15102,Supplies & Services,Planning and Development,Equipment Repair & Maintenance,05/10/2016,165860,87.50,YORK SURVEY SUPPLY CENTRE LTD,A01960,6,2016
Allerdale Borough Council,20301,Third Party Payments,Parks and Grounds Maintenance,Contract Services-Parks & Open Spaces,16/09/2016,165861,"54,739.75",ISS WATERERS LANDSCAPE,C00044,6,2016
Allerdale Borough Council,20301,Third Party Payments,Parks and Grounds Maintenance,Contract Services-Parks & Open Spaces,16/09/2016,165862,"54,739.75",ISS WATERERS LANDSCAPE,C00044,6,2016
Allerdale Borough Council,20301,Third Party Payments,Parks and Grounds Maintenance,Contract Services-Parks & Open Spaces,16/09/2016,165863,"54,739.75",ISS WATERERS LANDSCAPE,C00044,6,2016
Allerdale Borough Council,15602,Supplies & Services,Human Resources Pay Group,Business Reply Licences,21/09/2016,165864,108.31,ROYAL MAIL LETTERS,X00021,6,2016
Allerdale Borough Council,12402,Premises,Corporate Property Maintenance,Electricity,21/09/2016,165865,"2,597.73",N POWER ,X00015,6,2016
Allerdale Borough Council,12402,Premises,Footways,Electricity,21/09/2016,165866,"5,020.28",N POWER,X00015,6,2016
Allerdale Borough Council,15501,Supplies & Services,Revenue,Consultants Fees,21/09/2016,165867,15.00,ROSSENDALES LTD,A00964,6,2016
Allerdale Borough Council,12402,Premises,Corporate Property Maintenance,Electricity,21/09/2016,165868,"1,283.14",N POWER,X00015,6,2016
Allerdale Borough Council,15601,Supplies & Services,Benefits,Postage,21/09/2016,165869,"1,311.65",ROYAL MAIL LETTERS,X00021,6,2016
Allerdale Borough Council,15501,Supplies & Services,Human Resources Pay Group,Consultants Fees,21/09/2016,165870,"2,326.23",MDIS,A02363,6,2016
Allerdale Borough Council,20101,Third Party Payments,Public Convenience Cleaning,Cleansing Contract,21/09/2016,165871,325.00,LINDOW HALL,A00165,6,2016
Allerdale Borough Council,10202,Employee Costs,Human Resources Pay Group,Medical Screening,21/09/2016,165872,60.00,WELLWORK LTD,A00029,6,2016
Allerdale Borough Council,15405,Supplies & Services,Housing & Health Pay Group,Use of External Printers,21/09/2016,165873,50.00,GROSVENOR HOUSE PAPERS,A00034,6,2016
Allerdale Borough Council,52107,Capital Expenditure,Evolution Centre Food Bank Works,Removal Costs (Capital),21/09/2016,165874,893.00,Redacted information - included personal information ,C00008,6,2016
Allerdale Borough Council,21100,Transfer Payments,Environmental Initiatives,Budget-Grants Paid,21/09/2016,165875,"20,000.00",KESWICK TOWN COUNCIL,A00253,6,2016
Allerdale Borough Council,16350,Supplies & Services,Leaders Portfolio,Miscellaneous Expenses,28/09/2016,165876,150.00,JIM DAVIS PHOTOGRAPHY,A00627,6,2016
Allerdale Borough Council,15101,Supplies & Services,Public Building Cleaning,Equipment Costs,21/09/2016,165877,65.86,WF HYGIENE & CLEANING SUPPLIES,A01794,6,2016
Allerdale Borough Council,16003,Supplies & Services,Off-street - Owned,Security of Cash Movements,21/09/2016,165878,288.00,SECURITY PLUS LIMITED,A00503,6,2016
Allerdale Borough Council,16003,Supplies & Services,Off-street - Owned,Security of Cash Movements,21/09/2016,165879,"3,864.00",SECURITY PLUS LIMITED,A00503,6,2016
Allerdale Borough Council,16003,Supplies & Services,Off-street - Owned,Security of Cash Movements,21/09/2016,165880,90.00,SECURITY PLUS LIMITED,A00503,6,2016
Allerdale Borough Council,16003,Supplies & Services,Off-street - Owned,Security of Cash Movements,21/09/2016,165881,"2,508.00",SECURITY PLUS LIMITED,A00503,6,2016
Allerdale Borough Council,12101,Premises,Corporate Property Maintenance,External Maintenance & Decoration,,165882,"9,424.84",CAPITA - PROPERTY & INFRASTRUCTURE,A00774,6,2016
Allerdale Borough Council,15506,Supplies & Services,Food and Occupational Health,Professional Services,28/09/2016,165883,235.00,MPM NORTH WEST LIMITED,A00113,6,2016
Allerdale Borough Council,16003,Supplies & Services,Off-street - Owned,Security of Cash Movements,21/09/2016,165884,120.00,SECURITY PLUS LIMITED,A00503,6,2016
Allerdale Borough Council,16003,Supplies & Services,Off-street - Owned,Security of Cash Movements,21/09/2016,165885,102.00,SECURITY PLUS LIMITED,A00503,6,2016
Allerdale Borough Council,16003,Supplies & Services,Off-street - Owned,Security of Cash Movements,21/09/2016,165886,"4,032.00",SECURITY PLUS LIMITED,A00503,6,2016
Allerdale Borough Council,16003,Supplies & Services,Off-street - Owned,Security of Cash Movements,21/09/2016,165887,"1,839.67",SECURITY PLUS LIMITED,A00503,6,2016
Allerdale Borough Council,16003,Supplies & Services,Off-street - Owned,Security of Cash Movements,21/09/2016,165888,622.81,SECURITY PLUS LIMITED,A00503,6,2016
Allerdale Borough Council,16003,Supplies & Services,Off-street - Owned,Security of Cash Movements,21/09/2016,165889,25.00,SECURITY PLUS LIMITED,A00503,6,2016
Allerdale Borough Council,16003,Supplies & Services,Off-street - Owned,Security of Cash Movements,21/09/2016,165890,10.00,SECURITY PLUS LIMITED,A00503,6,2016
Allerdale Borough Council,16003,Supplies & Services,Off-street - Owned,Security of Cash Movements,21/09/2016,165891,83.71,SECURITY PLUS LIMITED,A00503,6,2016
Allerdale Borough Council,16003,Supplies & Services,Off-street - Owned,Security of Cash Movements,21/09/2016,165892,"1,969.49",SECURITY PLUS LIMITED,A00503,6,2016
Allerdale Borough Council,16003,Supplies & Services,Off-street - Owned,Security of Cash Movements,21/09/2016,165893,"1,093.17",SECURITY PLUS LIMITED,A00503,6,2016
Allerdale Borough Council,16003,Supplies & Services,Off-street - Owned,Security of Cash Movements,21/09/2016,165894,32.60,SECURITY PLUS LIMITED,A00503,6,2016
Allerdale Borough Council,16003,Supplies & Services,Off-street - Owned,Security of Cash Movements,21/09/2016,165895,"1,699.45",SECURITY PLUS LIMITED,A00503,6,2016
Allerdale Borough Council,16003,Supplies & Services,Off-street - Owned,Security of Cash Movements,21/09/2016,165896,"1,596.34",SECURITY PLUS LIMITED,A00503,6,2016
Allerdale Borough Council,15203,Supplies & Services,Solway Coast AONB Core Funding,Catering Costs and Consumables,28/09/2016,165897,39.54,Redacted information - included personal information ,M00969,6,2016
Allerdale Borough Council,15100,Supplies & Services,Benefits,"Budget-Equipment, Furniture & Materials",,165898,83.66,BARCLAYCARD COMMERCIAL,X00207,6,2016
Allerdale Borough Council,10607,Employee Costs,Human Resources Pay Group,Subsistence,,165899,7.85,BARCLAYCARD COMMERCIAL,X00207,6,2016
Allerdale Borough Council,15103,Supplies & Services,Housing & Health Pay Group,Purchase of Materials,,165900,10.75,BARCLAYCARD COMMERCIAL,X00207,6,2016
Allerdale Borough Council,33134,Income,Planning and Development,Pre-Planning Advice,28/09/2016,165901,38.33,Redacted information - included personal information ,M00970,6,2016
Allerdale Borough Council,33134,Income,Planning and Development,Pre-Planning Advice,28/09/2016,165902,38.33,Redacted information - included personal information ,M00971,6,2016
Allerdale Borough Council,16102,Supplies & Services,Town Centre Management,Regeneration Initiatives,,165903,411.89,BARCLAYCARD COMMERCIAL,X00207,6,2016
Allerdale Borough Council,15811,Supplies & Services,Shared ICT Costs,Software Maintenance,,165904,835.77,BARCLAYCARD COMMERCIAL,X00207,6,2016
Allerdale Borough Council,16102,Supplies & Services,LEP Flood Recovery Events Funding,Regeneration Initiatives,28/09/2016,165905,160.00,EW & PA NICHOLSON LTD,A01268,6,2016
Allerdale Borough Council,15506,Supplies & Services,Legal Services,Professional Services,28/09/2016,165906,750.00,18 ST JOHN ST CHAMBERS,A01923,6,2016
Allerdale Borough Council,15506,Supplies & Services,Legal Services,Professional Services,28/09/2016,165907,247.50,FREETH CARTWRIGHT LLP,A01821,6,2016
Allerdale Borough Council,53101,Capital Expenditure,New Leisure Facility,Purchase of Fixed Plant & Equip Capital,28/09/2016,165908,300.00,CENTRIC OFFICE SOLUTIONS,A00065,6,2016
Allerdale Borough Council,15506,Supplies & Services,Communications,Professional Services,28/09/2016,165909,"2,500.00",ELSWORTH COMMUNICATIONS,A01869,6,2016
Allerdale Borough Council,16100,Supplies & Services,Communications and Marketing,Budget-Advertising and Promotions,28/09/2016,165910,300.00,Redacted information - included personal information ,A02361,6,2016
Allerdale Borough Council,15506,Supplies & Services,Legal Services,Professional Services,28/09/2016,165911,224.00,BEVAN BRITTAN LLP,A02181,6,2016
Allerdale Borough Council,15506,Supplies & Services,Legal Services,Professional Services,28/09/2016,165912,214.50,FREETH CARTWRIGHT LLP,A01821,6,2016
Allerdale Borough Council,15506,Supplies & Services,Legal Services,Professional Services,28/09/2016,165913,466.00,FREETH CARTWRIGHT LLP,A01821,6,2016
Allerdale Borough Council,53101,Capital Expenditure,New Leisure Facility,Purchase of Fixed Plant & Equip Capital,28/09/2016,165914,897.30,GLASDON UK LIMITED,C00029,6,2016
Allerdale Borough Council,10401,Employee Costs,Shared IT Services Pay Group,Agency Staff Costs,28/09/2016,165915,380.96,ADECCO RECRUITMENT,A00188,6,2016
Allerdale Borough Council,16150,Supplies & Services,Communications and Marketing,General Promotions,28/09/2016,165916,30.00,FIRPRESS PRINTERS,A00063,6,2016
Allerdale Borough Council,14101,Transport,Shared IT Services Pay Group,Vehicle Leasing,,165917,199.00,ARNOLD CLARK FINANCE LIMITED,A01781,6,2016
Allerdale Borough Council,15402,Supplies & Services,Multi-functional Printers,Photocopier Charges,05/10/2016,165918,"6,609.68",KONICA MINOLTA BUSINESS SOLUTIONS UK LTD,A01556,6,2016
Allerdale Borough Council,15203,Supplies & Services,Members Services,Catering Costs and Consumables,28/09/2016,165919,58.50,MAGGIES BAKERY,A01685,6,2016
Allerdale Borough Council,15101,Supplies & Services,Environmental Protection,Equipment Costs,,165920,927.00,CIRRUS RESEARCH,A02159,6,2016
Allerdale Borough Council,54105,Capital Expenditure,Disabled Facilities Grants,Grants  Private Individuals (Capital),28/09/2016,165921,"3,093.00",MAYSON BROS LTD,X00132,6,2016
Allerdale Borough Council,54105,Capital Expenditure,Disabled Facilities Grants,Grants  Private Individuals (Capital),28/09/2016,165922,"15,000.00",MAYSON BROS LTD,X00132,6,2016
Allerdale Borough Council,54105,Capital Expenditure,Disabled Facilities Grants,Grants  Private Individuals (Capital),28/09/2016,165923,325.00,BLUE FLAME SERVICES LTD,X00213,6,2016
Allerdale Borough Council,54105,Capital Expenditure,Disabled Facilities Grants,Grants  Private Individuals (Capital),28/09/2016,165924,"2,800.00",BLUE FLAME SERVICES LTD,X00213,6,2016
Allerdale Borough Council,54105,Capital Expenditure,Disabled Facilities Grants,Grants  Private Individuals (Capital),28/09/2016,165925,650.00,CONISTON CONSULTANTS LTD,X00210,6,2016
Allerdale Borough Council,54105,Capital Expenditure,Disabled Facilities Grants,Grants  Private Individuals (Capital),28/09/2016,165926,"1,295.00",DOLPHIN STAIRLIFTS CUMBRIA,X00107,6,2016
Allerdale Borough Council,15506,Supplies & Services,Sports Development,Professional Services,28/09/2016,165939,175.00,Redacted information - included personal information ,A02330,6,2016
Allerdale Borough Council,15506,Supplies & Services,Sports Development,Professional Services,28/09/2016,165940,225.00,Redacted information - included personal information ,A02330,6,2016
Allerdale Borough Council,12101,Premises,Corporate Property Maintenance,External Maintenance & Decoration,28/09/2016,165941,"1,375.00",MOSEDALE GILLATT,A01020,6,2016
Allerdale Borough Council,15101,Supplies & Services,Corporate Property Maintenance,Equipment Costs,13/09/2016,165942,151.33,BOOKER CASH & CARRY,A01419,6,2016
Allerdale Borough Council,15501,Supplies & Services,Solway Wetlands Project,Consultants Fees,28/09/2016,165943,"2,000.00",NORTH OF ENGLAND CIVIC TRUST,A02178,6,2016
Allerdale Borough Council,12301,Premises,Corporate Property Maintenance,Security,28/09/2016,165944,52.50,PRO-TEC SYSTEMS,C00026,6,2016
Allerdale Borough Council,12301,Premises,Corporate Property Maintenance,Security,28/09/2016,165945,28.00,PRO-TEC SYSTEMS,C00026,6,2016
Allerdale Borough Council,12301,Premises,Corporate Property Maintenance,Security,28/09/2016,165946,82.68,PRO-TEC SYSTEMS,C00026,6,2016
Allerdale Borough Council,12301,Premises,Corporate Property Maintenance,Security,28/09/2016,165947,35.00,PRO-TEC SYSTEMS,C00026,6,2016
Allerdale Borough Council,12302,Premises,Solway Coast AONB Core Funding,Building Cleaning,,165948,99.31,ORIAN SOLUTIONS LTD,A01814,6,2016
Allerdale Borough Council,12402,Premises,Corporate Property Maintenance,Electricity,28/09/2016,165949,66.00,N POWER ,X00015,6,2016
Allerdale Borough Council,12402,Premises,Public Convenience Cleaning,Electricity,28/09/2016,165950,77.14,N POWER ,X00015,6,2016
Allerdale Borough Council,12402,Premises,Public Convenience Cleaning,Electricity,28/09/2016,165951,9.03,N POWER ,X00015,6,2016
Allerdale Borough Council,12402,Premises,Car Parks Inspection & Maintenance,Electricity,28/09/2016,165952,11.32,N POWER ,X00015,6,2016
Allerdale Borough Council,12402,Premises,Public Convenience Cleaning,Electricity,28/09/2016,165953,197.61,N POWER ,X00015,6,2016
Allerdale Borough Council,12402,Premises,Public Convenience Cleaning,Electricity,28/09/2016,165954,39.59,N POWER ,X00015,6,2016
Allerdale Borough Council,12402,Premises,Public Convenience Cleaning,Electricity,28/09/2016,165955,41.43,N POWER ,X00015,6,2016
Allerdale Borough Council,12402,Premises,Public Convenience Cleaning,Electricity,28/09/2016,165956,-80.53,N POWER ,X00015,6,2016
Allerdale Borough Council,12402,Premises,Public Convenience Cleaning,Electricity,28/09/2016,165957,-51.25,N POWER ,X00015,6,2016
Allerdale Borough Council,12402,Premises,Corporate Property Maintenance,Electricity,28/09/2016,165958,9.03,N POWER ,X00015,6,2016
Allerdale Borough Council,12402,Premises,Corporate Property Maintenance,Electricity,28/09/2016,165959,10.12,N POWER ,X00015,6,2016
Allerdale Borough Council,12402,Premises,Corporate Property Maintenance,Electricity,28/09/2016,165960,91.31,N POWER ,X00015,6,2016
Allerdale Borough Council,12403,Premises,Corporate Property Maintenance,Gas,28/09/2016,165961,29.00,BRITISH GAS,X00040,6,2016
Allerdale Borough Council,12402,Premises,Corporate Property Maintenance,Electricity,28/09/2016,165962,358.51,N POWER ,X00015,6,2016
Allerdale Borough Council,12402,Premises,Corporate Property Maintenance,Electricity,28/09/2016,165963,-119.70,N POWER ,X00015,6,2016
Allerdale Borough Council,12408,Premises,Corporate Property Maintenance,Water & Sewage,28/09/2016,165964,9.96,UNITED UTILITIES,X00011,6,2016
Allerdale Borough Council,12402,Premises,Corporate Property Maintenance,Electricity,28/09/2016,165965,420.75,SOUTHERN ELECTRIC,X00018,6,2016
Allerdale Borough Council,12403,Premises,Homelessness,Gas,28/09/2016,165966,56.65,GAZPROM ENERGY,X00246,6,2016
Allerdale Borough Council,12405,Premises,Off-street - Owned,Rentals and Lease Charges,28/09/2016,165967,"9,738.59",BNP PARIBAS REAL ESTATE,A02353,6,2016
Allerdale Borough Council,12408,Premises,Corporate Property Maintenance,Water & Sewage,28/09/2016,165968,159.44,UNITED UTILITIES ,X00011,6,2016
Allerdale Borough Council,12402,Premises,Homelessness,Electricity,28/09/2016,165969,171.17,OPUS ENERGY,X00226,6,2016
Allerdale Borough Council,12402,Premises,Homelessness,Electricity,28/09/2016,165970,248.02,OPUS ENERGY,X00226,6,2016
Allerdale Borough Council,12402,Premises,Homelessness,Electricity,28/09/2016,165971,192.35,OPUS ENERGY,X00226,6,2016
Allerdale Borough Council,12402,Premises,Homelessness,Electricity,28/09/2016,165972,170.40,OPUS ENERGY,X00226,6,2016
Allerdale Borough Council,12403,Premises,Homelessness,Gas,28/09/2016,165973,36.87,GAZPROM ENERGY,X00246,6,2016
Allerdale Borough Council,16150,Supplies & Services,Mary Portas - Maryport,General Promotions,05/10/2016,165974,260.74,LOVE MARYPORT TOWN TEAM,M00621,6,2016
Allerdale Borough Council,10601,Employee Costs,Legal Services,External Courses & Seminar Fees,,165977,20.00,KINGS CHAMBERS,A00348,6,2016
Allerdale Borough Council,12101,Premises,Corporate Property Maintenance,External Maintenance & Decoration,05/10/2016,165978,60.00,C CUNNINGHAM T/A MR KEYS,A00561,6,2016
Allerdale Borough Council,15508,Supplies & Services,Housing & Health Pay Group,Subscriptions,,165979,150.00,R H ENVIRONMENTAL LTD,A01718,6,2016
Allerdale Borough Council,15405,Supplies & Services,Electoral Registration,Use of External Printers,05/10/2016,165980,"4,390.97",PRINT IMAGE NETWORK LIMITED (POSTAGE),A01782,6,2016
Allerdale Borough Council,15701,Supplies & Services,IT Costs (Allerdale Only),Installation Costs,,165981,195.99,MISCO,A00125,6,2016
Allerdale Borough Council,26000,Earmarked Reserves,Shared Revs & Bens Projects,Budget-Expd funded from Reserve,05/10/2016,165982,936.00,MORGAN HUNT PUBLIC SECTOR,A00725,6,2016
Allerdale Borough Council,20150,Third Party Payments,Footways,General Partnership Service Fees,,165983,926.00,ELECTRICITY NORTH WEST LTD,A00471,6,2016
Allerdale Borough Council,15506,Supplies & Services,Food and Occupational Health,Professional Services,05/10/2016,165984,150.36,PUBLIC HEALTH ENGLAND,A01839,6,2016
Allerdale Borough Council,15501,Supplies & Services,Estates,Consultants Fees,05/10/2016,165985,"1,840.00",JAMES ANDREW RECRUITMENT SOLUTIONS LTD,A02339,6,2016
Allerdale Borough Council,10110,Employee Costs,Allerdale Options,Salary Sacrifice,05/10/2016,165986,265.00,THE DENWOOD-LING GROUP,A02366,6,2016
Allerdale Borough Council,16150,Supplies & Services,Town Centre Management,General Promotions,,165987,300.00,POD (NORTH WEST) LIMITED,A01977,6,2016
Allerdale Borough Council,15403,Supplies & Services,Solway Wetlands Project,Publications and Periodicals,,165988,194.11,NORTH OF ENGLAND CIVIC TRUST,A02178,6,2016
Allerdale Borough Council,16302,Supplies & Services,EU Referendum,Room Hire,05/10/2016,165989,81.00,GREENWICH LEISURE LTD (PREV CARLISLE LEISURE),A00136,6,2016
Allerdale Borough Council,15101,Supplies & Services,Public Building Cleaning,Equipment Costs,05/10/2016,165990,52.08,WF HYGIENE & CLEANING SUPPLIES,A01794,6,2016
Allerdale Borough Council,12103,Premises,Coastal Protection and Inland Flooding,Grounds Maintenance,05/10/2016,165991,320.00,MPM NORTH WEST LIMITED,A00113,6,2016
Allerdale Borough Council,15506,Supplies & Services,Housing Needs Survey,Professional Services,,165992,"9,384.00",OPINION RESEARCH SERVICES,A02271,6,2016
Allerdale Borough Council,10601,Employee Costs,Solway Coast AONB Core Funding,External Courses & Seminar Fees,05/10/2016,165993,200.00,MICHAELA CORRIE GRAPHIC DESIGN,A00513,6,2016
Allerdale Borough Council,10401,Employee Costs,Building Control - Chargeable,Agency Staff Costs,05/10/2016,165994,"3,885.00",A&H BUILDING CONTROL CONSULTANTS LTD,A02318,6,2016
Allerdale Borough Council,75103,Holding and Control Accounts,Payroll Suspense Account,PAYROLL September 16 Travel & Subsistence  ,,,"11,618.07",INLAND REVENUE,X00038,6,2016
